[Event "Titled Tuesday Blitz December 13 Early 2022"]
[White "Iskusnyh, Sergei"]
[Black "Chernomordik, Pavel"]
[WhiteFideId "4120027"]
[BlackFideId "2804530"]
[WhiteElo "2492"]
[BlackElo "2193"]
[Result "1-0"]
[Round "10"]
[TimeControl "180+1"]
[Date "2022.12.14"]
[WhiteClock "0:00:25"]
[BlackClock "0:00:04"]

1. d4 {[%clk 0:03:00]}  g6 {[%clk 0:02:59]} 2. c4 {[%clk 0:03:00]}  Bg7 {[%clk 0:02:59]} 3. Nf3 {[%clk 0:03:00]}  d6 {[%clk 0:02:59]} 4. g3 {[%clk 0:02:59]}  Nf6 {[%clk 0:02:58]} 5. Bg2 {[%clk 0:02:59]}  O-O {[%clk 0:02:58]} 6. Nc3 {[%clk 0:03:00]}  c6 {[%clk 0:02:58]} 7. O-O {[%clk 0:03:00]}  a6 {[%clk 0:02:58]} 8. e4 {[%clk 0:02:59]}  Nfd7 {[%clk 0:02:58]} 9. Be3 {[%clk 0:02:49]}  b5 {[%clk 0:02:56]} 10. Qe2 {[%clk 0:02:43]}  bxc4 {[%clk 0:02:53]} 11. Qxc4 {[%clk 0:02:43]}  a5 {[%clk 0:02:54]} 12. Rfd1 {[%clk 0:02:42]}  Ba6 {[%clk 0:02:52]} 13. Qa4 {[%clk 0:02:41]}  Nb6 {[%clk 0:02:48]} 14. Qc2 {[%clk 0:02:38]}  Nc4 {[%clk 0:02:39]} 15. Bg5 {[%clk 0:02:35]}  h6 {[%clk 0:02:37]} 16. Bc1 {[%clk 0:02:33]}  Nd7 {[%clk 0:02:36]} 17. b3 {[%clk 0:02:32]}  Ncb6 {[%clk 0:02:34]} 18. Be3 {[%clk 0:02:31]}  Rc8 {[%clk 0:02:31]} 19. Rac1 {[%clk 0:02:29]}  Qc7 {[%clk 0:02:26]} 20. Qd2 {[%clk 0:02:28]}  Kh7 {[%clk 0:02:24]} 21. Nd5 {[%clk 0:02:17]}  Qd8 {[%clk 0:02:13]} 22. Nf4 {[%clk 0:01:54]}  a4 {[%clk 0:02:13]} 23. e5 {[%clk 0:01:35]}  axb3 {[%clk 0:02:05]} 24. axb3 {[%clk 0:01:35]}  Nd5 {[%clk 0:01:29]} 25. Nxd5 {[%clk 0:01:31]}  cxd5 {[%clk 0:01:27]} 26. exd6 {[%clk 0:01:30]}  exd6 {[%clk 0:01:26]} 27. Rxc8 {[%clk 0:01:28]}  Bxc8 {[%clk 0:01:18]} 28. Qb4 {[%clk 0:01:22]}  Nf6 {[%clk 0:01:16]} 29. Bf4 {[%clk 0:01:22]}  Ne4 {[%clk 0:01:15]} 30. Nd2 {[%clk 0:01:19]}  Bf5 {[%clk 0:00:58]} 31. Nxe4 {[%clk 0:01:17]}  Bxe4 {[%clk 0:00:58]} 32. Qxd6 {[%clk 0:01:11]}  Qa5 {[%clk 0:00:51]} 33. Be5 {[%clk 0:01:06]}  Bxg2 {[%clk 0:00:43]} 34. Kxg2 {[%clk 0:01:04]}  f6 {[%clk 0:00:38]} 35. Bf4 {[%clk 0:01:01]}  Qb5 {[%clk 0:00:29]} 36. Rc1 {[%clk 0:00:51]}  Qxb3 {[%clk 0:00:21]} 37. Rc7 {[%clk 0:00:51]}  Rg8 {[%clk 0:00:18]} 38. Qxf6 {[%clk 0:00:50]}  Qd3 {[%clk 0:00:16]} 39. Re7 {[%clk 0:00:37]}  Kh8 {[%clk 0:00:11]} 40. Rxg7 {[%clk 0:00:26]}  Rxg7 {[%clk 0:00:07]} 41. Bxh6 {[%clk 0:00:26]}  Qe4+ {[%clk 0:00:07]} 42. Kh3 {[%clk 0:00:22]}  Qf5+ {[%clk 0:00:05]} 43. Qxf5 {[%clk 0:00:22]}  gxf5 {[%clk 0:00:05]} 44. Bxg7+ {[%clk 0:00:23]}  Kxg7 {[%clk 0:00:05]} 45. Kh4 {[%clk 0:00:24]}  Kg6 {[%clk 0:00:04]} 46. f4 {[%clk 0:00:24]}  Kh6 {[%clk 0:00:04]} 47. h3 {[%clk 0:00:25]}  Kg6 {[%clk 0:00:04]} 48. g4 {[%clk 0:00:25]} 1-0


[Site "https://www.chess.com"]

[Event "Titled Tuesday Blitz December 13 Early 2022"]
[White "Kamsky, Gata"]
[Black "Andreikin, Dmitry"]
[WhiteFideId "2000024"]
[BlackFideId "4158814"]
[WhiteElo "2666"]
[BlackElo "2735"]
[Result "1-0"]
[Round "10"]
[TimeControl "180+1"]
[Date "2022.12.13"]
[WhiteClock "0:00:16"]
[BlackClock "0:00:02"]

1. e4 {[%clk 0:03:00]}  g6 {[%clk 0:02:51]} 2. d4 {[%clk 0:02:57]}  Bg7 {[%clk 0:02:52]} 3. c4 {[%clk 0:02:56]}  e6 {[%clk 0:02:50]} 4. Nc3 {[%clk 0:02:55]}  Ne7 {[%clk 0:02:49]} 5. h4 {[%clk 0:02:53]}  d5 {[%clk 0:02:46]} 6. e5 {[%clk 0:02:41]}  c5 {[%clk 0:02:42]} 7. Nf3 {[%clk 0:02:31]}  cxd4 {[%clk 0:02:31]} 8. Nb5 {[%clk 0:01:56]}  O-O {[%clk 0:02:30]} 9. h5 {[%clk 0:01:56]}  Nbc6 {[%clk 0:02:26]} 10. Bf4 {[%clk 0:01:52]}  Qa5+ {[%clk 0:02:05]} 11. Qd2 {[%clk 0:01:47]}  Qxd2+ {[%clk 0:02:02]} 12. Kxd2 {[%clk 0:01:46]}  Rd8 {[%clk 0:01:59]} 13. c5 {[%clk 0:01:41]}  b6 {[%clk 0:01:44]} 14. Rc1 {[%clk 0:01:32]}  Rb8 {[%clk 0:01:31]} 15. b3 {[%clk 0:01:30]}  gxh5 {[%clk 0:01:15]} 16. Rxh5 {[%clk 0:01:26]}  Ng6 {[%clk 0:01:12]} 17. Bg3 {[%clk 0:01:23]}  Ba6 {[%clk 0:00:57]} 18. Nxa7 {[%clk 0:01:14]}  Bxf1 {[%clk 0:00:43]} 19. Nxc6 {[%clk 0:01:13]}  Bxg2 {[%clk 0:00:43]} 20. Nfxd4 {[%clk 0:01:12]}  bxc5 {[%clk 0:00:38]} 21. Nxb8 {[%clk 0:01:10]}  cxd4 {[%clk 0:00:28]} 22. Nc6 {[%clk 0:01:09]}  Ra8 {[%clk 0:00:28]} 23. a4 {[%clk 0:01:09]}  Bf3 {[%clk 0:00:25]} 24. Rch1 {[%clk 0:00:52]}  Rc8 {[%clk 0:00:18]} 25. Nxd4 {[%clk 0:00:42]}  Bxh1 {[%clk 0:00:18]} 26. Rxh1 {[%clk 0:00:42]}  Nxe5 {[%clk 0:00:19]} 27. Nb5 {[%clk 0:00:35]}  d4 {[%clk 0:00:12]} 28. Bxe5 {[%clk 0:00:31]}  Bxe5 {[%clk 0:00:12]} 29. Kd3 {[%clk 0:00:31]}  Kg7 {[%clk 0:00:08]} 30. b4 {[%clk 0:00:22]}  Kg6 {[%clk 0:00:07]} 31. a5 {[%clk 0:00:22]}  Rb8 {[%clk 0:00:07]} 32. Kc4 {[%clk 0:00:23]}  Rc8+ {[%clk 0:00:07]} 33. Kb3 {[%clk 0:00:23]}  Rb8 {[%clk 0:00:06]} 34. Na7 {[%clk 0:00:20]}  Bd6 {[%clk 0:00:05]} 35. Nc6 {[%clk 0:00:20]}  Rb5 {[%clk 0:00:02]} 36. Ka4 {[%clk 0:00:18]}  Rf5 {[%clk 0:00:02]} 37. a6 {[%clk 0:00:18]}  Rxf2 {[%clk 0:00:02]} 38. Ra1 {[%clk 0:00:16]} 1-0


[Site "https://www.chess.com"]

[Event "Titled Tuesday Blitz December 13 Early 2022"]
[White "Kirillov, Dmitry"]
[Black "Kim, Sergey"]
[WhiteFideId "34180572"]
[BlackFideId "13700570"]
[WhiteElo "2111"]
[BlackElo "2577"]
[Result "0-1"]
[Round "10"]
[TimeControl "180+1"]
[Date "2022.12.14"]
[WhiteClock "0:00:01"]
[BlackClock "0:00:08"]

1. e4 {[%clk 0:03:00]}  e5 {[%clk 0:02:58]} 2. Nf3 {[%clk 0:03:00]}  Nc6 {[%clk 0:02:58]} 3. d4 {[%clk 0:03:01]}  exd4 {[%clk 0:02:56]} 4. c3 {[%clk 0:03:01]}  d3 {[%clk 0:02:55]} 5. Bxd3 {[%clk 0:03:00]}  d6 {[%clk 0:02:55]} 6. c4 {[%clk 0:02:59]}  Nf6 {[%clk 0:02:54]} 7. Nc3 {[%clk 0:02:59]}  Be7 {[%clk 0:02:54]} 8. h3 {[%clk 0:03:00]}  O-O {[%clk 0:02:54]} 9. O-O {[%clk 0:03:01]}  Ne5 {[%clk 0:02:53]} 10. Bf4 {[%clk 0:02:59]}  Ng6 {[%clk 0:02:52]} 11. Bh2 {[%clk 0:02:57]}  Nd7 {[%clk 0:02:52]} 12. Qe2 {[%clk 0:02:53]}  Re8 {[%clk 0:02:51]} 13. Rad1 {[%clk 0:02:53]}  Bf8 {[%clk 0:02:51]} 14. Qc2 {[%clk 0:02:48]}  c6 {[%clk 0:02:42]} 15. b3 {[%clk 0:02:46]}  Qf6 {[%clk 0:02:40]} 16. Ne2 {[%clk 0:02:39]}  Nde5 {[%clk 0:02:39]} 17. Nxe5 {[%clk 0:02:38]}  dxe5 {[%clk 0:02:39]} 18. f4 {[%clk 0:02:33]}  exf4 {[%clk 0:02:24]} 19. Nxf4 {[%clk 0:02:33]}  Qg5 {[%clk 0:02:16]} 20. Nxg6 {[%clk 0:02:30]}  hxg6 {[%clk 0:02:13]} 21. Bf4 {[%clk 0:02:26]}  Qc5+ {[%clk 0:02:09]} 22. Kh1 {[%clk 0:02:24]}  a5 {[%clk 0:02:08]} 23. Qe2 {[%clk 0:02:15]}  Qh5 {[%clk 0:02:04]} 24. Qf2 {[%clk 0:02:01]}  Bg4 {[%clk 0:01:55]} 25. Rde1 {[%clk 0:01:37]}  Bxh3 {[%clk 0:01:36]} 26. gxh3 {[%clk 0:01:27]}  Qxh3+ {[%clk 0:01:35]} 27. Bh2 {[%clk 0:01:28]}  Qxd3 {[%clk 0:01:35]} 28. Qxf7+ {[%clk 0:01:28]}  Kh7 {[%clk 0:01:34]} 29. Rf3 {[%clk 0:01:27]}  Re7 {[%clk 0:01:21]} 30. Qxf8 {[%clk 0:01:20]}  Rxf8 {[%clk 0:01:11]} 31. Rxd3 {[%clk 0:01:20]}  Rf2 {[%clk 0:01:12]} 32. Red1 {[%clk 0:01:02]}  Rxe4 {[%clk 0:01:08]} 33. Rh3+ {[%clk 0:00:45]}  Kg8 {[%clk 0:01:07]} 34. Rd8+ {[%clk 0:00:45]}  Kf7 {[%clk 0:01:06]} 35. Rd7+ {[%clk 0:00:44]}  Re7 {[%clk 0:01:05]} 36. Rxe7+ {[%clk 0:00:37]}  Kxe7 {[%clk 0:01:05]} 37. a3 {[%clk 0:00:38]}  b5 {[%clk 0:00:49]} 38. c5 {[%clk 0:00:28]}  Rc2 {[%clk 0:00:41]} 39. b4 {[%clk 0:00:26]}  a4 {[%clk 0:00:41]} 40. Bd6+ {[%clk 0:00:24]}  Ke6 {[%clk 0:00:38]} 41. Rg3 {[%clk 0:00:21]}  Kf5 {[%clk 0:00:37]} 42. Rg2 {[%clk 0:00:09]}  Rc3 {[%clk 0:00:36]} 43. Ra2 {[%clk 0:00:05]}  g5 {[%clk 0:00:35]} 44. Kg2 {[%clk 0:00:05]}  g4 {[%clk 0:00:34]} 45. Bg3 {[%clk 0:00:04]}  Ke4 {[%clk 0:00:31]} 46. Re2+ {[%clk 0:00:04]}  Kd5 {[%clk 0:00:26]} 47. Re5+ {[%clk 0:00:04]}  Kc4 {[%clk 0:00:26]} 48. Re6 {[%clk 0:00:04]}  Rxa3 {[%clk 0:00:25]} 49. Rxc6 {[%clk 0:00:04]}  Ra2+ {[%clk 0:00:25]} 50. Kg1 {[%clk 0:00:03]}  a3 {[%clk 0:00:24]} 51. Rg6 {[%clk 0:00:02]}  Rc2 {[%clk 0:00:21]} 52. c6 {[%clk 0:00:02]}  Kb3 {[%clk 0:00:21]} 53. c7 {[%clk 0:00:01]}  a2 {[%clk 0:00:20]} 54. Ra6 {[%clk 0:00:01]}  Rc3 {[%clk 0:00:18]} 55. Kg2 {[%clk 0:00:01]}  Rc2+ {[%clk 0:00:18]} 56. Kf1 {[%clk 0:00:02]}  g5 {[%clk 0:00:16]} 57. Ra5 {[%clk 0:00:02]}  Kxb4 {[%clk 0:00:15]} 58. Ra6 {[%clk 0:00:02]}  Kb3 {[%clk 0:00:15]} 59. Bd6 {[%clk 0:00:02]}  b4 {[%clk 0:00:15]} 60. Ke1 {[%clk 0:00:03]}  g3 {[%clk 0:00:15]} 61. Kf1 {[%clk 0:00:02]}  g2+ {[%clk 0:00:14]} 62. Kg1 {[%clk 0:00:02]}  g4 {[%clk 0:00:14]} 63. Be5 {[%clk 0:00:02]}  g3 {[%clk 0:00:09]} 64. Bxg3 {[%clk 0:00:01]}  Kb2 {[%clk 0:00:09]} 65. Bd6 {[%clk 0:00:02]}  b3 {[%clk 0:00:09]} 66. Be5+ {[%clk 0:00:02]}  Kb1 {[%clk 0:00:09]} 67. Rb6 {[%clk 0:00:02]}  b2 {[%clk 0:00:08]} 68. Rxb2+ {[%clk 0:00:01]}  Rxb2 {[%clk 0:00:08]} 69. c8=Q {[%clk 0:00:01]}  a1=Q {[%clk 0:00:08]} 70. Bxb2 {[%clk 0:00:01]}  Qxb2 {[%clk 0:00:08]} 0-1


[Site "https://www.chess.com"]

[Event "Titled Tuesday Blitz December 13 Early 2022"]
[White "Klepikov, Nikita"]
[Black "Mitrovic, Darko R"]
[WhiteFideId "24145220"]
[BlackFideId "927023"]
[WhiteElo "2025"]
[BlackElo "2150"]
[Result "1-0"]
[Round "10"]
[TimeControl "180+1"]
[Date "2022.12.14"]
[WhiteClock "0:00:16"]
[BlackClock "0:00:01"]

1. e4 {[%clk 0:02:56]}  e6 {[%clk 0:02:59]} 2. d4 {[%clk 0:02:54]}  d5 {[%clk 0:03:00]} 3. Nc3 {[%clk 0:02:54]}  Bb4 {[%clk 0:02:59]} 4. Bd2 {[%clk 0:02:53]}  Nf6 {[%clk 0:02:54]} 5. e5 {[%clk 0:02:49]}  Nfd7 {[%clk 0:02:55]} 6. a3 {[%clk 0:02:47]}  Be7 {[%clk 0:02:53]} 7. f4 {[%clk 0:02:46]}  c5 {[%clk 0:02:51]} 8. Nf3 {[%clk 0:02:46]}  Nc6 {[%clk 0:02:46]} 9. Be3 {[%clk 0:02:31]}  cxd4 {[%clk 0:02:45]} 10. Nxd4 {[%clk 0:02:30]}  a6 {[%clk 0:02:34]} 11. Be2 {[%clk 0:02:18]}  Bc5 {[%clk 0:02:19]} 12. Na4 {[%clk 0:02:16]}  Qa5+ {[%clk 0:01:53]} 13. c3 {[%clk 0:02:02]}  Nxd4 {[%clk 0:01:12]} 14. Bxd4 {[%clk 0:02:02]}  Bxd4 {[%clk 0:01:09]} 15. Qxd4 {[%clk 0:02:03]}  b5 {[%clk 0:01:01]} 16. Nc5 {[%clk 0:02:01]}  Qc7 {[%clk 0:00:56]} 17. Nxd7 {[%clk 0:01:57]}  Bxd7 {[%clk 0:00:54]} 18. O-O {[%clk 0:01:57]}  O-O {[%clk 0:00:49]} 19. Bd3 {[%clk 0:01:52]}  Rac8 {[%clk 0:00:46]} 20. Rac1 {[%clk 0:01:49]}  Qc5 {[%clk 0:00:44]} 21. b4 {[%clk 0:01:41]}  Qxd4+ {[%clk 0:00:40]} 22. cxd4 {[%clk 0:01:42]}  f6 {[%clk 0:00:36]} 23. exf6 {[%clk 0:01:26]}  gxf6 {[%clk 0:00:29]} 24. Rfe1 {[%clk 0:01:21]}  h6 {[%clk 0:00:20]} 25. Rc5 {[%clk 0:01:21]}  Kf7 {[%clk 0:00:15]} 26. Be2 {[%clk 0:01:07]}  Rxc5 {[%clk 0:00:13]} 27. bxc5 {[%clk 0:00:59]}  Ke7 {[%clk 0:00:10]} 28. Bg4 {[%clk 0:00:47]}  Rg8 {[%clk 0:00:07]} 29. Bxe6 {[%clk 0:00:44]}  Bxe6 {[%clk 0:00:07]} 30. f5 {[%clk 0:00:44]}  Rg4 {[%clk 0:00:06]} 31. Rxe6+ {[%clk 0:00:41]}  Kf7 {[%clk 0:00:05]} 32. Rxa6 {[%clk 0:00:26]}  Rxd4 {[%clk 0:00:06]} 33. Ra7+ {[%clk 0:00:24]}  Kg8 {[%clk 0:00:05]} 34. c6 {[%clk 0:00:21]}  Rc4 {[%clk 0:00:04]} 35. c7 {[%clk 0:00:21]}  d4 {[%clk 0:00:01]} 36. Ra8+ {[%clk 0:00:19]}  Kg7 {[%clk 0:00:01]} 37. c8=Q {[%clk 0:00:20]}  Rxc8 {[%clk 0:00:01]} 38. Rxc8 {[%clk 0:00:20]}  d3 {[%clk 0:00:02]} 39. Rd8 {[%clk 0:00:20]}  d2 {[%clk 0:00:02]} 40. Rd7+ {[%clk 0:00:19]}  Kg8 {[%clk 0:00:01]} 41. Rxd2 {[%clk 0:00:19]}  h5 {[%clk 0:00:02]} 42. Rb2 {[%clk 0:00:19]}  Kg7 {[%clk 0:00:01]} 43. Rxb5 {[%clk 0:00:18]}  h4 {[%clk 0:00:02]} 44. a4 {[%clk 0:00:17]}  Kh6 {[%clk 0:00:02]} 45. a5 {[%clk 0:00:17]}  Kg5 {[%clk 0:00:03]} 46. a6 {[%clk 0:00:17]}  Kg4 {[%clk 0:00:01]} 47. a7 {[%clk 0:00:17]}  h3 {[%clk 0:00:01]} 48. a8=Q {[%clk 0:00:16]}  hxg2 {[%clk 0:00:01]} 49. Qxg2+ {[%clk 0:00:16]} 1-0


[Site "https://www.chess.com"]

[Event "Titled Tuesday Blitz December 13 Early 2022"]
[White "Koellner, Ruben Gideon"]
[Black "Santos Flores, Alberto"]
[WhiteFideId "12993093"]
[BlackFideId "3601234"]
[WhiteElo "2303"]
[BlackElo "2235"]
[Result "1-0"]
[Round "10"]
[TimeControl "180+1"]
[Date "2022.12.14"]
[WhiteClock "0:00:37"]
[BlackClock "0:00:11"]

1. d4 {[%clk 0:03:00]}  d5 {[%clk 0:02:58]} 2. Nf3 {[%clk 0:03:00]}  Nf6 {[%clk 0:02:57]} 3. Nbd2 {[%clk 0:03:00]}  Bf5 {[%clk 0:02:55]} 4. e3 {[%clk 0:03:00]}  c6 {[%clk 0:02:54]} 5. Ne5 {[%clk 0:02:58]}  Nfd7 {[%clk 0:02:42]} 6. g4 {[%clk 0:02:54]}  Bg6 {[%clk 0:02:41]} 7. Nxg6 {[%clk 0:02:52]}  hxg6 {[%clk 0:02:40]} 8. Bg2 {[%clk 0:02:52]}  e5 {[%clk 0:02:39]} 9. O-O {[%clk 0:02:39]}  Bd6 {[%clk 0:02:38]} 10. h3 {[%clk 0:02:38]}  Qe7 {[%clk 0:02:25]} 11. e4 {[%clk 0:02:36]}  exd4 {[%clk 0:02:00]} 12. exd5 {[%clk 0:02:34]}  O-O {[%clk 0:01:58]} 13. Re1 {[%clk 0:02:33]}  Qf6 {[%clk 0:01:55]} 14. Ne4 {[%clk 0:02:31]}  Qe5 {[%clk 0:01:54]} 15. Ng5 {[%clk 0:01:14]}  Qh2+ {[%clk 0:01:44]} 16. Kf1 {[%clk 0:01:14]}  Bb4 {[%clk 0:01:22]} 17. Qxd4 {[%clk 0:00:55]}  c5 {[%clk 0:00:23]} 18. Qe4 {[%clk 0:00:50]}  Nf6 {[%clk 0:00:21]} 19. Qf3 {[%clk 0:00:49]}  Qd6 {[%clk 0:00:16]} 20. c3 {[%clk 0:00:47]}  Ba5 {[%clk 0:00:14]} 21. Bf4 {[%clk 0:00:46]}  Qd7 {[%clk 0:00:15]} 22. Qg3 {[%clk 0:00:38]}  Na6 {[%clk 0:00:12]} 23. Qh4 {[%clk 0:00:37]}  Rfe8 {[%clk 0:00:11]} 24. Be5 {[%clk 0:00:37]} 1-0


[Site "https://www.chess.com"]

[Event "Titled Tuesday Blitz December 13 Early 2022"]
[White "Kuchava, Ana"]
[Black "Bashirli, Saadat"]
[WhiteFideId "13605348"]
[BlackFideId "13429990"]
[WhiteElo "2001"]
[BlackElo "1408"]
[Result "0-1"]
[Round "10"]
[TimeControl "180+1"]
[Date "2022.12.14"]
[WhiteClock "0:00:04"]
[BlackClock "0:01:42"]

1. d4 {[%clk 0:02:49]}  d5 {[%clk 0:02:59]} 2. Nf3 {[%clk 0:02:45]}  e6 {[%clk 0:02:59]} 3. c4 {[%clk 0:02:43]}  c6 {[%clk 0:02:59]} 4. e3 {[%clk 0:02:35]}  dxc4 {[%clk 0:02:58]} 5. Bxc4 {[%clk 0:02:30]}  b5 {[%clk 0:02:59]} 6. Bd3 {[%clk 0:02:25]}  Nf6 {[%clk 0:02:59]} 7. O-O {[%clk 0:02:14]}  Bb7 {[%clk 0:02:57]} 8. Nc3 {[%clk 0:01:51]}  Nbd7 {[%clk 0:02:57]} 9. a3 {[%clk 0:01:27]}  Bd6 {[%clk 0:02:57]} 10. e4 {[%clk 0:01:23]}  e5 {[%clk 0:02:57]} 11. dxe5 {[%clk 0:01:23]}  Nxe5 {[%clk 0:02:57]} 12. Nxe5 {[%clk 0:01:22]}  Bxe5 {[%clk 0:02:58]} 13. Be3 {[%clk 0:01:21]}  O-O {[%clk 0:02:57]} 14. f4 {[%clk 0:01:21]}  Bd4 {[%clk 0:02:53]} 15. Bxd4 {[%clk 0:01:20]}  Qxd4+ {[%clk 0:02:53]} 16. Kh1 {[%clk 0:01:20]}  Rad8 {[%clk 0:02:53]} 17. Bc2 {[%clk 0:01:20]}  Qxd1 {[%clk 0:02:50]} 18. Raxd1 {[%clk 0:01:21]}  a6 {[%clk 0:02:49]} 19. e5 {[%clk 0:01:18]}  Ng4 {[%clk 0:02:43]} 20. Rde1 {[%clk 0:00:28]}  Rd2 {[%clk 0:02:40]} 21. Re2 {[%clk 0:00:26]}  Rxe2 {[%clk 0:02:30]} 22. Nxe2 {[%clk 0:00:27]}  Ne3 {[%clk 0:02:29]} 23. Rc1 {[%clk 0:00:26]}  Rd8 {[%clk 0:02:29]} 24. Be4 {[%clk 0:00:17]}  Nc4 {[%clk 0:02:19]} 25. h3 {[%clk 0:00:06]}  h6 {[%clk 0:02:12]} 26. b3 {[%clk 0:00:05]}  Nxa3 {[%clk 0:02:07]} 27. Bxc6 {[%clk 0:00:05]}  Bxc6 {[%clk 0:02:05]} 28. Rxc6 {[%clk 0:00:06]}  a5 {[%clk 0:02:05]} 29. Ra6 {[%clk 0:00:04]}  Rd2 {[%clk 0:02:01]} 30. Rxa5 {[%clk 0:00:04]}  Nc2 {[%clk 0:01:55]} 31. Nc3 {[%clk 0:00:03]}  b4 {[%clk 0:01:54]} 32. Ne4 {[%clk 0:00:03]}  Re2 {[%clk 0:01:51]} 33. Nd6 {[%clk 0:00:04]}  Ne3 {[%clk 0:01:49]} 34. Ra8+ {[%clk 0:00:04]}  Kh7 {[%clk 0:01:48]} 35. Nxf7 {[%clk 0:00:04]}  Nxg2 {[%clk 0:01:46]} 36. f5 {[%clk 0:00:04]}  g5 {[%clk 0:01:42]} 0-1


[Site "https://www.chess.com"]

[Event "Titled Tuesday Blitz December 13 Early 2022"]
[White "Lacasa Diaz, Jose Antonio"]
[Black "Avazkhonov, Alikhon"]
[WhiteFideId "2203375"]
[BlackFideId "14208504"]
[WhiteElo "2338"]
[BlackElo "1739"]
[Result "1-0"]
[Round "10"]
[TimeControl "180+1"]
[Date "2022.12.14"]
[WhiteClock "0:01:28"]
[BlackClock "0:00:02"]

1. e4 {[%clk 0:03:00]}  c5 {[%clk 0:02:58]} 2. Nf3 {[%clk 0:03:00]}  d6 {[%clk 0:02:58]} 3. d4 {[%clk 0:03:00]}  cxd4 {[%clk 0:02:59]} 4. Nxd4 {[%clk 0:03:01]}  Nf6 {[%clk 0:03:00]} 5. Nc3 {[%clk 0:03:01]}  a6 {[%clk 0:03:00]} 6. Be3 {[%clk 0:03:02]}  e5 {[%clk 0:03:01]} 7. Nb3 {[%clk 0:03:01]}  Be6 {[%clk 0:03:01]} 8. Qd2 {[%clk 0:03:02]}  Be7 {[%clk 0:03:00]} 9. O-O-O {[%clk 0:03:02]}  O-O {[%clk 0:03:01]} 10. f4 {[%clk 0:03:01]}  Nbd7 {[%clk 0:02:58]} 11. f5 {[%clk 0:03:00]}  Bxb3 {[%clk 0:02:59]} 12. cxb3 {[%clk 0:03:00]}  Nc5 {[%clk 0:02:56]} 13. Bxc5 {[%clk 0:02:55]}  dxc5 {[%clk 0:02:57]} 14. Qe2 {[%clk 0:02:47]}  Qc7 {[%clk 0:02:53]} 15. g4 {[%clk 0:02:46]}  Rad8 {[%clk 0:01:56]} 16. g5 {[%clk 0:02:29]}  Rxd1+ {[%clk 0:01:46]} 17. Qxd1 {[%clk 0:02:30]}  Nd7 {[%clk 0:01:46]} 18. h4 {[%clk 0:02:20]}  Nb6 {[%clk 0:01:46]} 19. Bc4 {[%clk 0:02:14]}  Rd8 {[%clk 0:01:44]} 20. Nd5 {[%clk 0:02:10]}  Nxd5 {[%clk 0:01:37]} 21. Bxd5 {[%clk 0:02:11]}  g6 {[%clk 0:01:15]} 22. f6 {[%clk 0:01:53]}  Bf8 {[%clk 0:01:14]} 23. h5 {[%clk 0:01:53]}  c4 {[%clk 0:00:54]} 24. bxc4 {[%clk 0:01:51]}  Qb6 {[%clk 0:00:27]} 25. hxg6 {[%clk 0:01:44]}  hxg6 {[%clk 0:00:26]} 26. Kb1 {[%clk 0:01:40]}  Qe3 {[%clk 0:00:21]} 27. Qg4 {[%clk 0:01:29]}  Rxd5 {[%clk 0:00:03]} 28. cxd5 {[%clk 0:01:29]}  Qd3+ {[%clk 0:00:02]} 29. Ka1 {[%clk 0:01:28]} 1-0


[Site "https://www.chess.com"]

[Event "Titled Tuesday Blitz December 13 Early 2022"]
[White "Lenderman, Aleksandr"]
[Black "Avinash, Ramesh"]
[WhiteFideId "2021285"]
[BlackFideId "45018340"]
[WhiteElo "2607"]
[BlackElo "2264"]
[Result "1/2-1/2"]
[Round "10"]
[TimeControl "180+1"]
[Date "2022.12.13"]
[WhiteClock "0:00:07"]
[BlackClock "0:00:14"]

1. d4 {[%clk 0:03:00]}  Nf6 {[%clk 0:02:58]} 2. c4 {[%clk 0:03:01]}  g6 {[%clk 0:02:57]} 3. Nc3 {[%clk 0:03:00]}  d5 {[%clk 0:02:58]} 4. Bg5 {[%clk 0:02:59]}  Bg7 {[%clk 0:02:56]} 5. Nf3 {[%clk 0:02:57]}  Ne4 {[%clk 0:02:56]} 6. Bf4 {[%clk 0:02:57]}  Nxc3 {[%clk 0:02:55]} 7. bxc3 {[%clk 0:02:58]}  dxc4 {[%clk 0:02:52]} 8. Qa4+ {[%clk 0:02:51]}  Nd7 {[%clk 0:02:26]} 9. Qxc4 {[%clk 0:02:52]}  c5 {[%clk 0:02:23]} 10. e3 {[%clk 0:02:51]}  O-O {[%clk 0:02:20]} 11. Be2 {[%clk 0:02:47]}  b6 {[%clk 0:02:21]} 12. O-O {[%clk 0:02:46]}  Bb7 {[%clk 0:02:21]} 13. Rfd1 {[%clk 0:02:44]}  cxd4 {[%clk 0:02:20]} 14. cxd4 {[%clk 0:02:44]}  Rc8 {[%clk 0:02:12]} 15. Qa4 {[%clk 0:02:44]}  a6 {[%clk 0:02:10]} 16. Rac1 {[%clk 0:02:38]}  b5 {[%clk 0:02:09]} 17. Qa3 {[%clk 0:02:37]}  Nf6 {[%clk 0:01:52]} 18. Ne5 {[%clk 0:02:32]}  Nd5 {[%clk 0:01:46]} 19. Bg3 {[%clk 0:02:31]}  b4 {[%clk 0:01:34]} 20. Qb2 {[%clk 0:02:30]}  a5 {[%clk 0:01:30]} 21. Bf3 {[%clk 0:02:27]}  Ba8 {[%clk 0:01:26]} 22. Rxc8 {[%clk 0:02:23]}  Qxc8 {[%clk 0:01:25]} 23. Rc1 {[%clk 0:02:18]}  Nc3 {[%clk 0:01:25]} 24. Bxa8 {[%clk 0:02:17]}  Qxa8 {[%clk 0:01:26]} 25. a3 {[%clk 0:02:15]}  Rc8 {[%clk 0:01:25]} 26. Ra1 {[%clk 0:02:12]}  Qb7 {[%clk 0:01:10]} 27. h3 {[%clk 0:02:06]}  Ne4 {[%clk 0:00:59]} 28. Bf4 {[%clk 0:02:03]}  b3 {[%clk 0:00:59]} 29. Rb1 {[%clk 0:01:55]}  a4 {[%clk 0:00:57]} 30. Nd3 {[%clk 0:01:53]}  Qb5 {[%clk 0:00:50]} 31. Nb4 {[%clk 0:01:51]}  Qc4 {[%clk 0:00:47]} 32. Re1 {[%clk 0:01:46]}  Qc3 {[%clk 0:00:46]} 33. Qxc3 {[%clk 0:01:36]}  Nxc3 {[%clk 0:00:47]} 34. Nd3 {[%clk 0:01:36]}  Nb5 {[%clk 0:00:47]} 35. Ra1 {[%clk 0:01:33]}  Rc2 {[%clk 0:00:46]} 36. g4 {[%clk 0:01:31]}  Ra2 {[%clk 0:00:46]} 37. Rc1 {[%clk 0:01:30]}  Rc2 {[%clk 0:00:39]} 38. Rxc2 {[%clk 0:01:30]}  bxc2 {[%clk 0:00:40]} 39. Kf1 {[%clk 0:01:31]}  Nxa3 {[%clk 0:00:40]} 40. Ke2 {[%clk 0:01:31]}  Nc4 {[%clk 0:00:40]} 41. Nc1 {[%clk 0:01:29]}  e5 {[%clk 0:00:35]} 42. dxe5 {[%clk 0:01:12]}  Bxe5 {[%clk 0:00:32]} 43. Kd3 {[%clk 0:01:08]}  Bxf4 {[%clk 0:00:32]} 44. Kxc4 {[%clk 0:01:07]}  Bd6 {[%clk 0:00:31]} 45. Kd3 {[%clk 0:01:06]}  Kg7 {[%clk 0:00:31]} 46. Kxc2 {[%clk 0:01:05]}  Kf6 {[%clk 0:00:32]} 47. f4 {[%clk 0:00:55]}  g5 {[%clk 0:00:30]} 48. Ne2 {[%clk 0:00:42]}  a3 {[%clk 0:00:28]} 49. Kb3 {[%clk 0:00:38]}  h6 {[%clk 0:00:25]} 50. Ka2 {[%clk 0:00:36]}  Ke6 {[%clk 0:00:25]} 51. Nd4+ {[%clk 0:00:16]}  Kd5 {[%clk 0:00:25]} 52. Nf5 {[%clk 0:00:16]}  Bf8 {[%clk 0:00:25]} 53. fxg5 {[%clk 0:00:07]}  hxg5 {[%clk 0:00:25]} 54. h4 {[%clk 0:00:08]}  gxh4 {[%clk 0:00:25]} 55. Nxh4 {[%clk 0:00:09]}  Ke4 {[%clk 0:00:24]} 56. Nf5 {[%clk 0:00:10]}  Kf3 {[%clk 0:00:24]} 57. g5 {[%clk 0:00:10]}  Kg4 {[%clk 0:00:14]} 58. Nh6+ {[%clk 0:00:10]}  Kxg5 {[%clk 0:00:14]} 59. Nxf7+ {[%clk 0:00:06]}  Kf6 {[%clk 0:00:14]} 60. Nd8 {[%clk 0:00:06]}  Ke5 {[%clk 0:00:13]} 61. Nc6+ {[%clk 0:00:06]}  Ke4 {[%clk 0:00:13]} 62. Na5 {[%clk 0:00:07]}  Kd3 {[%clk 0:00:13]} 63. e4 {[%clk 0:00:07]}  Kxe4 {[%clk 0:00:13]} 64. Nc4 {[%clk 0:00:07]}  Kd3 {[%clk 0:00:14]} 65. Nxa3 {[%clk 0:00:07]} 1/2-1/2


[Site "https://www.chess.com"]